bitfinex-derivatives/quotes_BNBF0:USTF0_20250524
["timestamp","ask_amount","ask_price","bid_price","bid_amount"]
[1748119606795,1.07572009,673.75,673.51,0.64734829]
[1748119606994,1.07572009,673.74,673.51,0.64734829]
[1748119607198,0.29677993,673.9,673.52,0.64734829]
[1748119607199,1.07572009,673.73,673.52,0.64734829]
[1748119607399,1.07572009,673.72,673.52,0.64734829]
[1748119607599,1.07594399,673.71,673.52,0.64734829]
[1748119607802,1.07594399,673.7,673.52,0.64734829]
[1748119607995,1.07594399,673.69,673.52,0.64734829]
[1748119608296,1.07594399,673.68,673.52,0.64734829]
[1748119608499,1.07594399,673.67,673.53,0.64734829]
[1748119608700,1.07594399,673.66,673.53,0.64734829]
[1748119608901,1.07594399,673.65,673.53,0.64734829]
[1748119609102,1.07594399,673.64,673.53,0.64734829]
[1748119609300,0.29677993,673.9,673.53,0.64734829]
[1748119609501,1.07602478,673.89,673.53,0.64734829]
[1748119609697,1.07602478,673.88,673.54,0.64734829]
[1748119609900,1.07602478,673.87,673.54,0.64734829]
[1748119610102,1.07602478,673.86,673.54,0.64734829]
[1748119610302,1.07602478,673.85,673.54,0.64734829]
[1748119610503,1.07602478,673.84,673.54,0.64734829]
[1748119610702,1.07602478,673.83,673.54,0.64734829]
[1748119610902,1.07602478,673.82,673.54,0.64734829]
[1748119611103,1.07602478,673.81,673.54,0.64734829]
[1748119611403,1.07602478,673.8,673.55,0.64734829]
[1748119611599,1.07602478,673.79,673.55,0.64734829]
[1748119611902,1.07602478,673.78,673.55,0.64734829]
[1748119612103,1.07602478,673.77,673.55,0.64734829]
[1748119612403,1.07602478,673.76,673.55,0.64734829]
[1748119612603,1.07602478,673.75,673.55,0.64734829]
[1748119612803,1.07602478,673.74,673.56,0.64734829]
[1748119613005,1.07602478,673.73,673.56,0.64734829]
[1748119613302,1.07602478,673.72,673.56,0.64734829]
[1748119613502,1.07602478,673.71,673.56,0.64734829]
[1748119613702,1.07602478,673.7,673.56,0.64734829]
[1748119613904,1.07602478,673.69,673.57,0.64734829]
[1748119614104,1.07602478,673.68,673.57,0.64734829]
[1748119614403,1.07602478,673.67,673.57,0.64734829]
[1748119614603,1.07602478,673.66,673.57,0.64734829]
[1748119614805,0.29677993,673.9,673.57,0.64734829]
[1748119615007,1.07632002,673.89,673.58,0.64734829]
[1748119615206,1.07632002,673.88,673.58,0.64734829]
[1748119615403,1.07632002,673.87,673.58,0.64734829]
[1748119615603,1.07632002,673.86,673.58,0.64734829]
[1748119615801,1.07632002,673.85,673.58,0.64734829]
[1748119616007,1.07632002,673.84,673.58,0.64734829]
[1748119616205,1.07632002,673.83,673.58,0.64734829]
[1748119616406,1.07632002,673.82,673.59,0.64734829]
[1748119616605,1.07632002,673.81,673.59,0.64734829]
[1748119616802,1.07632002,673.8,673.59,0.64734829]
[1748119617105,1.07632002,673.79,673.59,0.64734829]
[1748119617306,1.07632002,673.78,673.59,0.64734829]
[1748119617602,1.07632002,673.77,673.6,0.64734829]
[1748119617901,1.07632002,673.76,673.6,0.64734829]
[1748119618100,1.07632002,673.75,673.6,0.64734829]
[1748119618306,1.07632002,673.74,673.6,0.64734829]
[1748119618606,1.07632002,673.74,673.5,0.69551471]
[1748119618607,1.07632002,673.73,673.61,0.64734829]
[1748119618800,1.07632002,673.72,673.61,0.64734829]
[1748119619001,0.29677993,673.9,673.61,0.64734829]
[1748119619203,1.07658376,673.89,673.61,0.64734829]
[1748119619401,1.07658376,673.88,673.61,0.64734829]
[1748119619605,1.07658376,673.87,673.62,0.64734829]
[1748119619806,1.07658376,673.86,673.62,0.64734829]
[1748119620007,1.07658376,673.85,673.62,0.64734829]
[1748119620307,1.07658376,673.84,673.62,0.64734829]
[1748119620507,1.07658376,673.83,673.62,0.64734829]
[1748119620703,1.07658376,673.82,673.62,0.64734829]
[1748119620909,1.07658376,673.81,673.63,0.64734829]
[1748119621105,1.07658376,673.8,673.63,0.64734829]
[1748119621309,1.07658376,673.79,673.63,0.64734829]
[1748119621511,1.07658376,673.78,673.63,0.64734829]
[1748119621704,1.07658376,673.77,673.63,0.64734829]
[1748119621908,1.07658376,673.76,673.63,0.64734829]
[1748119622106,1.07658376,673.75,673.64,0.64734829]
[1748119622305,1.07658376,673.74,673.64,0.64734829]
[1748119622505,1.07658376,673.73,673.64,0.64734829]
[1748119622709,1.07658376,673.72,673.64,0.64734829]
[1748119622907,1.07705181,673.71,673.64,0.64734829]
[1748119623108,0.29677993,673.9,673.64,0.64734829]
[1748119623307,1.07708316,673.89,673.64,0.64734829]
[1748119623505,1.07708316,673.88,673.65,0.64734829]
[1748119623707,1.07708316,673.87,673.65,0.64734829]
[1748119623909,1.07708316,673.86,673.65,0.64734829]
[1748119624107,1.07708316,673.85,673.65,0.64734829]
[1748119624310,1.07708316,673.84,673.66,0.64734829]
[1748119624507,1.07708316,673.83,673.66,0.64734829]
[1748119624804,1.07722369,673.82,673.66,0.64734829]
[1748119625011,1.07722369,673.81,673.66,0.64734829]
[1748119625209,1.07722369,673.8,673.66,0.64734829]
[1748119625410,1.07722369,673.79,673.67,0.64734829]
[1748119625609,1.07722369,673.78,673.67,0.64734829]
[1748119625810,1.07722369,673.77,673.67,0.64734829]
[1748119626009,1.07722369,673.76,673.67,0.64734829]
[1748119626209,1.07722369,673.75,673.67,0.64734829]
[1748119626409,1.07722369,673.74,673.68,0.64734829]
[1748119626709,1.07722369,673.73,673.68,0.64734829]
[1748119626909,1.07722369,673.72,673.68,0.64734829]
[1748119627108,1.07722369,673.71,673.68,0.64734829]
[1748119627309,1.07722369,673.7,673.68,0.64734829]
[1748119627509,1.07722369,673.69,673.59,0.7]
[1748119627710,1.07722369,673.68,673.59,0.7]
[1748119627910,0.29677993,673.9,673.59,0.7]
[1748119628110,1.07716446,673.89,673.59,0.7]
[1748119628307,1.07716446,673.88,673.59,0.7]
[1748119628507,1.07716446,673.87,673.59,0.7]
[1748119628712,1.07716446,673.86,673.6,0.65039474]
[1748119629011,1.07716446,673.85,673.6,0.65039474]
[1748119629213,1.07716446,673.84,673.6,0.65039474]
[1748119629413,1.07716446,673.83,673.6,0.65039474]
[1748119629714,1.07716446,673.82,673.61,0.65039474]
[1748119629907,1.07716446,673.81,673.61,0.65039474]
[1748119630110,1.07716446,673.8,673.61,0.65039474]
[1748119630311,1.07716446,673.79,673.61,0.65039474]
[1748119630508,1.07734739,673.78,673.61,0.65039474]
[1748119630713,1.07734739,673.77,673.62,0.65039474]
[1748119631013,1.07734739,673.76,673.62,0.65039474]
[1748119631215,1.0773853,673.75,673.62,0.65039474]
[1748119631409,1.0773853,673.74,673.62,0.65039474]
[1748119631613,1.0773853,673.73,673.62,0.65039474]
[1748119631814,1.0773853,673.72,673.62,0.65039474]
[1748119632014,1.0773853,673.71,673.62,0.65039474]
[1748119632208,1.0773853,673.7,673.62,0.65039474]
[1748119632410,1.0773853,673.69,673.62,0.65039474]
[1748119632609,0.29677993,673.9,673.63,0.65039474]
[1748119632817,1.07749447,673.89,673.63,0.65039474]
[1748119633014,1.07749447,673.88,673.63,0.65039474]
[1748119633315,1.07749447,673.87,673.63,0.65039474]
[1748119633515,1.07749447,673.86,673.64,0.65039474]
[1748119633710,1.07749447,673.85,673.64,0.65039474]
[1748119633909,1.07749447,673.84,673.64,0.65039474]
[1748119634114,1.07749447,673.83,673.64,0.65039474]
[1748119634415,1.07749447,673.82,673.65,0.65039474]
[1748119634617,1.07749447,673.81,673.65,0.65039474]
[1748119634810,1.07749447,673.8,673.65,0.65039474]
[1748119635009,1.07749447,673.79,673.65,0.65039474]
[1748119635213,1.07749447,673.78,673.66,0.65039474]
[1748119635415,1.07749447,673.77,673.66,0.65039474]
[1748119635615,1.07749447,673.76,673.66,0.65039474]
[1748119635812,1.07749447,673.75,673.66,0.65039474]
[1748119636016,1.07749447,673.74,673.66,0.65039474]
[1748119636217,1.07748851,673.73,673.66,0.65039474]
[1748119636417,1.07748851,673.72,673.66,0.65039474]
[1748119636611,1.07748851,673.71,673.66,0.65039474]
[1748119636818,1.07748851,673.7,673.66,0.65039474]
[1748119637018,1.07748851,673.69,673.67,0.65039474]
[1748119637218,1.07748851,673.68,673.67,0.65039474]
[1748119638318,1.07748851,673.68,673.6,0.65039474]
[1748119638517,1.07748851,673.67,673.6,0.65039474]
[1748119638716,1.07748851,673.66,673.6,0.65039474]
[1748119638916,1.07748851,673.65,673.6,0.65039474]
[1748119639117,1.07748851,673.64,673.6,0.65039474]
[1748119639319,1.07748851,673.63,673.61,0.65039474]
[1748119639518,1.07748851,673.62,673.61,0.65039474]
[1748119643820,1.07762511,673.62,673.61,0.65039474]
[1748119645721,1.07765908,673.62,673.61,0.65039474]
[1748119648926,1.07765238,673.62,673.61,0.65039474]
[1748119649524,0.29677993,673.9,673.61,0.65039474]
[1748119649729,1.07763434,673.89,673.61,0.65039474]
[1748119649931,1.07763434,673.88,673.61,0.65039474]
[1748119650123,1.07763434,673.87,673.61,0.65039474]
[1748119650326,1.07763434,673.86,673.61,0.65039474]
[1748119650526,1.07763434,673.85,673.62,0.65039474]
[1748119650727,1.07763434,673.84,673.62,0.65039474]
[1748119650928,1.07763434,673.83,673.62,0.65039474]
[1748119651230,1.07763434,673.82,673.63,0.65039474]
[1748119651429,1.07763535,673.81,673.63,0.65039474]
[1748119651629,1.07763535,673.8,673.63,0.65039474]
[1748119651830,1.07763535,673.79,673.63,0.65039474]
[1748119652030,1.07763535,673.78,673.63,0.65039474]
[1748119652230,1.07763535,673.77,673.64,0.65039474]
[1748119652429,1.07763535,673.76,673.64,0.65039474]
[1748119652627,0.29677993,673.9,673.64,0.65039474]
[1748119652829,1.07744547,673.89,673.64,0.65039474]
[1748119653025,1.37423421,673.88,673.64,0.65039474]
[1748119653226,1.07744547,673.87,673.6,0.65039474]
[1748119653429,1.07734189,673.86,673.6,0.65039474]
[1748119653633,1.07734189,673.85,673.6,0.65039474]
[1748119653826,1.07734189,673.84,673.6,0.65039474]
[1748119654025,1.07734189,673.83,673.6,0.65039474]
[1748119654230,1.07734189,673.82,673.6,0.65039474]
[1748119654429,1.07734189,673.81,673.6,0.65039474]
[1748119654634,1.07734189,673.8,673.6,0.65039474]
[1748119654931,1.07734189,673.79,673.59,0.7]
[1748119655126,1.07734189,673.78,673.59,0.7]
[1748119655330,1.07595975,673.77,673.59,0.7]
[1748119655534,1.07595975,673.76,673.59,0.7]
[1748119655732,1.07595975,673.75,673.59,0.7]
[1748119655933,1.07595975,673.74,673.59,0.7]
[1748119656129,1.07595975,673.73,673.59,0.7]
[1748119656332,1.07595975,673.72,673.59,0.7]
[1748119656633,1.07595975,673.71,673.59,0.7]
[1748119656834,1.07595975,673.7,673.59,0.7]
[1748119657033,1.07595975,673.69,673.59,0.7]
[1748119657334,1.07595975,673.68,673.59,0.7]
[1748119657534,1.07595975,673.67,673.59,0.7]
[1748119657731,1.07595975,673.66,673.59,0.7]
[1748119657937,1.07595975,673.65,673.59,0.7]
[1748119658131,1.07595975,673.64,673.59,0.7]
[1748119658333,1.07595975,673.63,673.59,0.7]
[1748119658531,1.07595975,673.62,673.59,0.7]
[1748119658734,1.07595975,673.61,673.59,0.7]
[1748119658948,1.07595975,673.6,673.59,0.7]
[1748119659237,1.07493967,673.6,673.59,0.7]
[1748119662941,1.07436959,673.6,673.59,0.7]
[1748119664846,1.07413052,673.6,673.59,0.7]
[1748119668651,1.0737491,673.6,673.59,0.7]
[1748119670546,1.07358061,673.6,673.59,0.7]
[1748119676255,0.29681076,673.83,673.59,0.7]
[1748119676456,1.07321508,673.82,673.59,0.7]
[1748119676655,1.37003465,673.81,673.59,0.7]
[1748119676849,1.37003906,673.8,673.59,0.7]
[1748119677050,1.37004346,673.79,673.59,0.7]
[1748119677253,1.37004787,673.78,673.59,0.7]
[1748119677450,1.37005227,673.77,673.59,0.7]
[1748119677751,1.07321508,673.76,673.18,0.69551471]
[1748119677954,1.07321508,673.75,673.18,0.69551471]
[1748119678150,0.29683719,673.77,673.18,0.69551471]
[1748119678361,1.07365429,673.76,673.18,0.69551471]
[1748119678550,1.07365429,673.75,673.19,0.64862415]
[1748119678753,1.07365429,673.74,673.19,0.64862415]
[1748119678952,1.07365429,673.73,673.19,0.64862415]
[1748119679154,1.07365429,673.72,673.2,0.64862415]
[1748119679355,1.07365429,673.71,673.2,0.64862415]
[1748119679555,1.07365429,673.7,673.2,0.64862415]
[1748119679758,1.07365429,673.69,673.2,0.64862415]
[1748119679956,1.07365429,673.68,673.2,0.64862415]
[1748119680152,1.07365429,673.67,673.21,0.577]
[1748119680354,1.07365429,673.66,673.21,1.22562415]
[1748119680556,1.07365429,673.65,673.21,1.22562415]
[1748119680755,1.07365429,673.64,673.21,1.22562415]
[1748119680956,1.07365429,673.63,673.21,1.22562415]
[1748119681151,1.07365429,673.62,673.21,1.22562415]
[1748119681357,1.07365429,673.61,673.22,0.64862415]
[1748119681557,1.07365429,673.6,673.22,0.64862415]
[1748119681758,1.07365429,673.59,673.22,0.64862415]
[1748119681962,1.07365429,673.58,673.22,0.64862415]
[1748119682160,1.07365429,673.57,673.22,0.64862415]
[1748119682360,1.07365429,673.56,673.22,0.64862415]
[1748119682558,1.07365429,673.55,673.23,0.64862415]
[1748119682755,1.07365429,673.54,673.23,0.64862415]
[1748119682957,1.07365429,673.53,673.23,0.64862415]
[1748119683159,1.07377302,673.52,673.23,0.64862415]
[1748119683360,0.29683719,673.77,673.23,0.64862415]
[1748119683559,1.07377512,673.76,673.23,0.64862415]
[1748119683759,1.07377512,673.75,673.23,0.64862415]
[1748119683961,1.07370929,673.74,673.24,0.64862415]
[1748119684161,1.07370929,673.73,673.24,0.64862415]
[1748119684360,1.07370929,673.72,673.24,0.64862415]
[1748119684563,1.07370929,673.71,673.24,0.64862415]
[1748119684765,1.07370929,673.7,673.24,0.64862415]
[1748119684966,1.07370929,673.69,673.24,0.64862415]
[1748119685161,1.07370929,673.68,673.24,0.64862415]
[1748119685365,1.07370929,673.67,673.25,0.64862415]
[1748119685661,1.07370929,673.66,673.25,0.64862415]
[1748119685864,1.07370929,673.65,673.25,0.64862415]
[1748119686168,1.07370929,673.64,673.22,0.64862415]
[1748119686468,1.07370929,673.63,673.22,0.64862415]
[1748119686768,1.07370929,673.62,673.22,0.64862415]
[1748119687066,1.07370929,673.61,673.22,0.64862415]
[1748119687268,1.07370929,673.6,673.22,0.64862415]
[1748119687468,1.07370929,673.59,673.22,0.64862415]
[1748119687670,1.07370929,673.58,673.22,0.64862415]
[1748119687869,1.07389631,673.57,673.22,0.64862415]
[1748119688169,1.07389631,673.56,673.23,0.64862415]
[1748119688468,1.07389631,673.55,673.23,0.64862415]
[1748119688668,1.07389631,673.54,673.23,0.64862415]
[1748119688969,1.07389631,673.53,673.23,0.64862415]
[1748119689165,1.07389631,673.52,673.24,0.64862415]
[1748119689469,1.07389631,673.51,673.24,0.64862415]
[1748119689668,1.07389631,673.5,673.24,0.64862415]
[1748119689869,0.2968416,673.76,673.24,0.64862415]
[1748119690071,1.07397422,673.75,673.24,0.64862415]
[1748119690266,1.07397422,673.74,673.25,0.64862415]
[1748119690469,1.07397422,673.73,673.25,0.64862415]
[1748119690670,1.07397422,673.72,673.25,0.64862415]
[1748119690865,1.07397422,673.71,673.25,0.64862415]
[1748119691170,1.07397422,673.7,673.26,0.64862415]
[1748119691372,1.07417241,673.69,673.26,0.64862415]
[1748119691564,1.07417241,673.68,673.26,0.64862415]
[1748119691765,1.07417241,673.67,673.26,0.64862415]
[1748119691965,1.07417241,673.66,673.26,0.64862415]
[1748119692169,1.07417241,673.65,673.26,0.64862415]
[1748119692370,1.07417241,673.64,673.26,0.64862415]
[1748119692567,1.07417241,673.63,673.26,0.64862415]
[1748119692772,1.3710757,673.62,673.23,0.64862415]
[1748119692973,1.37108011,673.61,673.25,0.46967583]
[1748119693175,1.37108452,673.6,673.25,0.46967583]
[1748119693375,1.37108893,673.59,673.25,0.46967583]
[1748119693674,1.36963383,673.58,673.25,0.46967583]
[1748119693873,1.36963824,673.57,673.25,0.46967583]
[1748119694073,1.36964265,673.56,673.25,0.46967583]
[1748119694274,1.36964706,673.55,673.25,0.46967583]
[1748119694475,1.36965147,673.54,673.25,0.46967583]
[1748119694774,1.36965588,673.53,673.25,0.46967583]
[1748119695074,1.36966029,673.52,673.25,0.46967583]
[1748119695271,1.36966469,673.51,673.25,0.46967583]
[1748119695476,1.3696691,673.5,673.26,0.498]
[1748119695673,1.36967351,673.49,673.26,0.498]
[1748119695872,1.36967792,673.48,673.26,0.498]
[1748119696070,1.36968233,673.47,673.26,0.498]
[1748119696274,1.36968674,673.46,673.26,0.498]
[1748119696471,1.36969115,673.45,673.26,0.498]
[1748119696678,1.36969556,673.44,673.26,0.498]
[1748119696876,1.36969997,673.43,673.26,0.498]
[1748119697175,1.36970438,673.42,673.26,0.498]
[1748119697375,1.07271291,673.41,673.26,0.498]
[1748119697572,1.3697132,673.4,673.26,0.498]
[1748119697770,1.36971761,673.39,673.26,0.498]
[1748119697974,1.36972202,673.38,673.26,0.498]
[1748119698169,1.36972643,673.37,673.26,0.498]
[1748119698371,1.36973084,673.36,673.26,0.498]
[1748119698574,1.07271291,673.35,673.26,0.498]
[1748119698769,1.07271291,673.34,673.26,0.498]
[1748119698970,1.36974408,673.33,673.26,0.498]
[1748119699177,1.07271291,673.32,673.26,0.498]
[1748119699376,1.07271291,673.31,673.26,0.498]
[1748119699577,1.07271291,673.3,673.26,0.498]
[1748119699777,1.07271291,673.29,673.26,0.498]
[1748119699979,1.07271291,673.28,673.26,0.498]
[1748119700173,1.07271291,673.27,673.26,0.498]
[1748119703180,0.29703117,673.33,673.26,0.498]
[1748119703475,1.0688667,673.32,673.26,0.498]
[1748119703674,1.0688667,673.31,673.26,0.498]
[1748119703878,1.0688667,673.3,673.26,0.498]
[1748119704079,1.0688667,673.29,673.26,0.498]
[1748119704380,1.0688667,673.28,673.26,0.498]
[1748119704580,1.0688667,673.27,673.26,0.498]
[1748119707076,1.06870917,673.27,673.26,0.498]
[1748119712783,1.06914925,673.27,673.26,0.498]
[1748119713589,1.06914925,673.27,672.75,0.69551471]
[1748119713791,1.06914925,673.26,672.75,0.69551471]
[1748119713991,1.06914925,673.25,672.75,0.69551471]
[1748119714193,1.06914925,673.24,672.76,0.64660387]
[1748119714489,1.06914925,673.23,672.76,0.64660387]
[1748119714691,0.29703117,673.33,672.76,0.64660387]
[1748119714886,1.06912487,673.32,672.76,0.64660387]
[1748119715085,1.06912487,673.31,672.76,0.64660387]
[1748119715289,1.06912487,673.3,672.77,0.64660387]
[1748119715491,1.06912487,673.29,672.77,0.64660387]
[1748119715687,1.06912487,673.28,672.77,0.64660387]
[1748119715890,1.06912487,673.27,672.77,0.64660387]
[1748119716090,1.06912487,673.26,672.77,0.64660387]
[1748119716290,1.06912487,673.25,672.78,0.64660387]
[1748119716491,1.06912487,673.24,672.78,1.37960387]
[1748119716790,1.06912487,673.23,672.78,1.37960387]
[1748119717097,0.29703117,673.33,672.78,1.37960387]
[1748119717286,1.06913834,673.32,672.78,1.37960387]
[1748119717488,1.06913834,673.31,672.78,1.37960387]
[1748119717686,1.06913834,673.3,672.79,0.64660387]
[1748119717890,1.06913834,673.29,672.79,0.64660387]
[1748119718086,1.06913834,673.28,672.79,0.64660387]
[1748119718290,1.06913834,673.27,672.79,0.64660387]
[1748119718486,1.06913834,673.26,672.79,0.64660387]
[1748119718686,1.06913834,673.25,672.79,0.64660387]
[1748119718991,1.06913834,673.24,672.8,0.64660387]
[1748119719291,1.06913834,673.23,672.8,0.64660387]
[1748119719488,0.29703117,673.33,672.8,0.64660387]
[1748119719688,1.06951233,673.32,672.8,0.64660387]
[1748119719891,1.06951233,673.31,672.8,0.64660387]
[1748119720090,1.06951233,673.3,672.8,0.64660387]
[1748119720391,1.06951233,673.29,672.81,0.64660387]
[1748119720587,1.06951386,673.28,672.81,0.64660387]
[1748119720789,1.06951386,673.27,672.81,0.64660387]
[1748119721191,1.06951386,673.26,672.82,0.64660387]
[1748119721491,1.06951386,673.25,672.82,0.64660387]
[1748119721790,1.06951386,673.24,672.82,0.64660387]
[1748119721991,1.06951386,673.23,672.82,0.64660387]
[1748119722286,1.06951386,673.22,672.82,0.64660387]
[1748119722591,0.29703117,673.33,672.82,0.64660387]
[1748119722792,1.06952785,673.32,672.79,0.64660387]
[1748119722988,1.06952785,673.31,672.79,0.64660387]
[1748119723188,1.06952785,673.3,672.79,0.64660387]
[1748119723386,1.06952785,673.29,672.79,0.64660387]
[1748119723587,1.06952785,673.28,672.79,0.64660387]
[1748119723787,1.06952785,673.27,672.8,0.64660387]
[1748119723989,1.06952785,673.26,672.8,0.64660387]
[1748119724187,1.06952785,673.25,672.8,0.64660387]
[1748119724486,1.06952785,673.24,672.8,0.64660387]
[1748119724694,1.06957531,673.23,672.8,0.64660387]
[1748119724886,1.06958406,673.22,672.8,0.64660387]
[1748119725086,0.29703117,673.33,672.8,0.64660387]
[1748119725292,1.06963235,673.32,672.81,0.64660387]
[1748119725492,1.06963235,673.31,672.81,0.64660387]
[1748119725694,1.06963235,673.3,672.81,0.64660387]
[1748119725896,1.06963235,673.29,672.79,0.64660387]
[1748119726193,1.06963235,673.28,672.79,0.64660387]
[1748119726388,1.06963235,673.27,672.79,0.64660387]
[1748119726590,1.06963871,673.26,672.79,0.64660387]
[1748119726789,1.06963871,673.25,672.79,0.64660387]
[1748119727095,1.06963871,673.24,672.8,0.64660387]
[1748119727290,0.29703117,673.33,672.8,0.64660387]
[1748119727291,1.06963871,673.23,672.8,0.64660387]
[1748119727490,1.06963871,673.22,672.8,0.64660387]
[1748119727694,0.29703117,673.33,672.8,0.64660387]
[1748119727996,1.06968331,673.32,672.81,0.64660387]
[1748119728195,1.06968331,673.31,672.81,0.64660387]
[1748119728391,1.06968331,673.3,672.81,0.64660387]
[1748119728596,1.06977195,673.29,672.81,0.64660387]
[1748119728795,1.06977195,673.28,672.82,0.64660387]
[1748119728996,1.06977195,673.27,672.82,0.64660387]
[1748119729197,1.06977195,673.26,672.82,0.64660387]
[1748119729397,1.06977195,673.25,672.82,0.64660387]
[1748119729597,1.06977195,673.24,672.82,0.64660387]
[1748119729798,1.06977195,673.23,672.82,0.64660387]
[1748119729997,1.06977195,673.22,672.79,0.64660387]
[1748119730297,0.29703117,673.33,672.79,0.64660387]
[1748119730499,1.07021455,673.32,672.79,0.64660387]
[1748119730694,1.07021455,673.31,672.79,0.64660387]
[1748119730899,1.07021455,673.3,672.79,0.64660387]
[1748119731102,1.07021455,673.29,672.79,0.64660387]
[1748119731297,1.07021455,673.28,672.8,0.64660387]
[1748119731496,1.07021455,673.27,672.8,0.64660387]
[1748119731797,1.07021455,673.26,672.8,0.64660387]
[1748119732099,1.07021455,673.25,672.8,0.64660387]
[1748119732300,1.07021455,673.24,672.81,0.64660387]
[1748119732497,1.07021455,673.23,672.81,0.64660387]
[1748119732702,1.07021455,673.22,672.81,0.64660387]
[1748119732902,0.29703117,673.33,672.81,0.64660387]
[1748119733103,1.07054403,673.32,672.81,0.64660387]
[1748119733401,1.07054403,673.31,672.81,0.64660387]
[1748119733597,1.07054403,673.3,672.79,1.34211858]
[1748119733802,1.07054403,673.29,672.79,1.34211858]
[1748119733996,1.07054403,673.28,672.79,1.34211858]
[1748119734200,1.07054403,673.27,672.79,1.34211858]
[1748119734402,1.07054403,673.26,672.79,1.34211858]
[1748119734605,1.07054403,673.25,672.9,0.46967583]
[1748119734804,1.07054403,673.24,672.9,0.46967583]
[1748119735005,1.07054403,673.23,672.91,0.64660387]
[1748119735205,1.07054403,673.22,672.91,0.64660387]
[1748119735406,1.07108648,673.21,672.91,0.64660387]
[1748119735606,0.29703117,673.33,672.91,0.64660387]
[1748119735803,1.07113993,673.32,672.91,0.64660387]
[1748119736003,1.07113993,673.31,672.91,0.64660387]
[1748119736209,1.07113993,673.3,672.91,0.64660387]
[1748119736405,1.07113993,673.29,672.91,1.1162797]
[1748119736609,1.07113993,673.28,672.92,0.64660387]
[1748119736809,1.07113993,673.27,672.92,0.64660387]
[1748119737010,1.07113993,673.26,672.92,0.64660387]
[1748119737206,1.07113993,673.25,672.92,0.64660387]
[1748119737409,1.07113993,673.24,672.92,0.64660387]
[1748119737609,1.07113993,673.23,672.92,0.64660387]
[1748119737905,1.07113993,673.22,672.92,0.64660387]
[1748119738109,1.07113993,673.21,672.92,0.64660387]
[1748119738410,0.29703117,673.33,672.92,0.64660387]
[1748119738605,1.07158897,673.32,672.92,0.64660387]
[1748119738807,1.07158897,673.31,672.92,0.64660387]
[1748119739008,1.07158897,673.3,672.92,0.64660387]
[1748119739211,1.07158897,673.29,672.92,0.64660387]
[1748119739411,1.07158897,673.28,672.92,0.64660387]
[1748119739608,1.07158897,673.27,672.92,1.1162797]
[1748119739812,1.07158897,673.26,672.92,1.1162797]
[1748119740013,1.07158897,673.25,672.92,1.1162797]
[1748119740218,1.07181734,673.24,672.92,1.1162797]
[1748119740413,1.07181734,673.23,672.92,1.1162797]
[1748119740713,1.07181734,673.22,672.92,1.1162797]
[1748119740913,1.07181734,673.21,672.93,0.64660387]
[1748119741114,1.07181734,673.2,672.93,0.64660387]
[1748119741309,0.29703117,673.33,672.95,0.46967583]
[1748119741513,1.07227442,673.32,672.95,0.46967583]
[1748119741710,1.07227442,673.31,672.95,0.46967583]
[1748119741910,0.29703117,673.33,672.95,0.46967583]
[1748119742110,1.07228729,673.32,672.95,0.46967583]
[1748119742311,1.07228729,673.31,672.95,0.46967583]
[1748119742511,1.07228729,673.3,672.95,0.46967583]
[1748119742811,1.07228729,673.29,672.96,0.64660387]
[1748119743014,1.07228729,673.28,672.96,0.64660387]
[1748119743214,1.07228729,673.27,672.96,0.64660387]
[1748119743420,1.07228729,673.26,672.96,0.64660387]
[1748119743616,1.07228729,673.25,672.96,0.64660387]
[1748119743819,0.29703117,673.33,672.96,0.64660387]
[1748119744112,1.07285702,673.32,672.95,0.64660387]
[1748119744317,1.07285702,673.31,672.95,0.64660387]
[1748119744515,1.07285702,673.3,672.95,0.64660387]
[1748119744712,1.07285702,673.29,672.95,0.64660387]
[1748119744912,1.07285702,673.28,672.95,0.64660387]
[1748119745117,1.07285702,673.27,672.95,0.64660387]
[1748119745316,1.07285702,673.26,672.95,0.64660387]
[1748119745518,1.07285702,673.25,672.95,0.64660387]
[1748119745817,1.07285702,673.24,672.95,0.64660387]
[1748119746117,1.07285702,673.23,672.95,0.64660387]
[1748119746319,1.07285702,673.22,672.95,0.64660387]
[1748119746512,1.07285702,673.21,672.95,0.64660387]
[1748119746716,1.07285702,673.2,672.95,0.64660387]
[1748119746913,1.07285702,673.19,672.95,0.64660387]
[1748119747112,1.07285702,673.18,672.89,0.64660387]
[1748119747317,1.07285702,673.17,672.89,0.64660387]
[1748119747518,1.07285702,673.16,672.89,0.64660387]
[1748119747817,0.29703117,673.33,672.89,0.64660387]
[1748119748017,1.0742593,673.32,672.89,0.64660387]
[1748119748218,1.0742593,673.31,672.89,0.64660387]
[1748119748521,1.0742593,673.3,672.89,0.64660387]
[1748119748817,1.0742593,673.29,672.9,0.64660387]
[1748119749117,1.0742593,673.28,672.9,0.64660387]
[1748119749416,1.0742593,673.27,672.9,0.64660387]
[1748119749617,0.29703117,673.33,672.91,0.64660387]
[1748119749618,1.07517624,673.26,672.91,0.64660387]
[1748119749811,1.07517624,673.25,672.91,0.64660387]
[1748119750015,1.07517624,673.24,672.91,0.64660387]
[1748119750214,1.07517624,673.23,672.91,0.64660387]
[1748119750414,1.07517624,673.22,672.91,0.64660387]